bitfinex-derivatives/quotes_ETHF0:USTF0_20250110
["timestamp","ask_amount","ask_price","bid_price","bid_amount"]
[1736514394020,0.77266,3312.9,3312.8,0.30187]
[1736514394216,0.4708,3312.9,3312.8,0.30187]
[1736514394612,0.77266,3312.9,3312.8,0.30187]
[1736514395114,0.30188,3312.8,3312.7,0.30187]
[1736514395722,0.77266,3312.9,3312.8,0.30187]
[1736514397218,0.4708,3312.9,3312.8,0.30187]
[1736514397616,3.2078,3313.0,3312.9,0.30186]
[1736514398023,3.2078,3313.0,3312.9,0.75496]
[1736514398822,0.74362,3313.4,3313.3,0.30182]
[1736514398823,0.4418,3313.4,3313.3,0.30182]
[1736514399723,0.74361,3313.4,3313.3,0.30182]
[1736514400620,0.4418,3313.4,3313.0,0.438]
[1736514400929,0.30184,3313.3,3313.2,0.30182]
[1736514402426,0.4418,3313.4,3313.0,0.438]
[1736514402427,0.74362,3313.4,3313.3,0.30182]
[1736514407929,0.30179,3313.8,3313.7,0.30178]
[1736514408231,0.30177,3314.0,3313.9,0.30176]
[1736514408633,0.30176,3314.1,3314.0,0.30175]
[1736514409030,1.22375,3314.2,3314.1,0.30175]
[1736514409926,3.2078,3314.3,3314.2,0.30174]
[1736514410530,1.19522,3314.5,3314.4,0.30172]
[1736514410832,1.19522,3314.5,3314.2,0.30173]
[1736514410833,0.30174,3314.3,3314.2,0.30173]
[1736514411037,3.2078,3314.4,3313.7,3.49558767]
[1736514411229,0.30176,3314.1,3314.0,0.30176]
[1736514412229,0.30177,3314.0,3313.9,0.30176]
[1736514412437,1.20717,3314.0,3313.9,0.30176]
[1736514413033,0.30178,3313.9,3313.8,0.30177]
[1736514413338,0.4661,3313.9,3313.8,0.30177]
[1736514413528,3.2078,3314.4,3313.7,2.31258767]
[1736514413730,3.2078,3314.4,3314.3,0.30173]
[1736514413931,3.50952,3314.4,3314.3,0.30173]
[1736514414138,3.2078,3314.4,3314.3,0.30173]
[1736514414339,3.50952,3314.4,3314.3,0.30173]
[1736514414739,3.2078,3314.4,3314.3,0.30173]
[1736514415134,3.50952,3314.4,3314.3,0.30173]
[1736514415840,3.2078,3314.4,3314.3,0.30173]
[1736514417444,3.50952,3314.4,3314.3,0.30173]
[1736514418444,3.2078,3314.4,3314.3,0.30173]
[1736514418850,3.50952,3314.4,3314.3,0.30173]
[1736514419446,3.2078,3314.4,3314.3,0.30173]
[1736514421648,0.4462,3314.8,3314.7,0.3017]
[1736514422144,0.74789,3314.8,3314.7,0.3017]
[1736514422545,0.4462,3314.8,3314.7,0.3017]
[1736514422951,0.9173,3314.8,3314.7,0.3017]
[1736514423138,3.2078,3314.9,3314.6,2.31258767]
[1736514423347,3.2078,3314.9,3314.8,0.30169]
[1736514423745,3.2078,3314.9,3314.8,41.10169]
[1736514424347,0.30166,3315.3,3315.2,0.30164]
[1736514425155,3.2078,3315.4,3314.9,0.75419]
[1736514425347,3.50945,3315.4,3315.3,0.30164]
[1736514427851,3.50943,3315.4,3315.3,0.30164]
[1736514428355,3.2078,3315.4,3315.3,0.30164]
[1736514429355,0.9305,3315.5,3315.4,0.30163]
[1736514429551,4.40749,3315.9,3315.8,0.3016]
[1736514430659,4.1059,3315.9,3315.8,0.3016]
[1736514431047,4.1059,3315.9,3315.7,0.30161]
[1736514431253,4.1059,3315.9,3315.2,0.75413]
[1736514431560,0.30162,3315.6,3315.5,0.30162]
[1736514431860,0.30162,3315.7,3315.6,0.3016]
[1736514432252,4.1059,3315.9,3315.2,2.31258767]
[1736514432461,4.1059,3315.9,3315.3,0.75411]
[1736514432962,0.30161,3315.7,3315.6,0.30161]
[1736514433262,0.30162,3315.7,3315.6,0.3016]
[1736514433561,4.1059,3315.9,3315.8,0.3016]
[1736514434663,3.2078,3315.9,3315.8,0.3016]
[1736514435753,3.2078,3315.9,3315.8,2.61418767]
[1736514436155,2.7078,3315.9,3315.8,2.61418767]
[1736514436350,0.9141,3316.3,3315.8,43.11258767]
[1736514436562,4.1219,3316.3,3316.2,0.30156]
[1736514436758,0.30154,3316.5,3316.4,0.30154]
[1736514437159,4.108,3316.7,3316.6,0.30152]
[1736514437160,0.9002,3316.7,3316.6,0.30152]
[1736514437470,3.2078,3317.1,3316.6,0.75382]
[1736514437756,3.2078,3317.1,3317.0,0.30149]
[1736514437956,3.2078,3317.1,3316.5,3.25458767]
[1736514438156,3.2078,3317.1,3316.8,2.31258767]
[1736514438361,3.2078,3317.1,3317.0,0.30149]
[1736514440762,0.30141,3317.9,3317.8,0.30141]
[1736514440972,0.4593,3317.9,3317.8,0.30141]
[1736514441966,0.4593,3317.9,3317.8,0.30005613]
[1736514442261,3.2078,3318.0,3317.9,0.30141]
[1736514442468,3.2078,3318.0,3317.9,2.61399767]
[1736514442768,3.5092,3318.0,3317.9,2.61399767]
[1736514442963,3.2078,3318.0,3317.9,2.61399767]
[1736514444267,3.5092,3318.0,3317.9,2.61399767]
[1736514444568,3.2078,3318.0,3317.9,2.61399767]
[1736514445066,3.5092,3318.0,3317.9,0.30141]
[1736514445364,0.30144,3317.6,3317.5,0.30143]
[1736514445564,3.2078,3318.0,3317.4,3.2078]
[1736514445963,0.30142,3317.8,3317.7,0.30142]
[1736514446164,3.2078,3318.0,3317.6,0.30142]
[1736514446165,0.30143,3317.7,3317.6,0.30142]
[1736514446465,3.2078,3318.0,3317.4,3.2078]
[1736514446668,0.30142,3317.8,3317.4,3.2078]
[1736514446858,0.4536,3317.7,3317.6,0.30143]
[1736514449470,0.4536,3317.7,3317.6,2.61401767]
[1736514449767,3.2078,3318.0,3317.9,0.30141]
[1736514449972,3.5092,3318.0,3317.9,0.30141]
[1736514450964,3.5092,3318.0,3317.6,2.31258767]
[1736514450965,3.2078,3318.0,3317.6,2.31258767]
[1736514451270,0.30142,3317.8,3317.7,0.30142]
[1736514451668,0.76522,3317.8,3317.7,0.30142]
[1736514451972,0.4638,3317.8,3317.7,0.30142]
[1736514452965,0.76521,3317.8,3317.7,0.30142]
[1736514453571,0.4638,3317.8,3317.4,3.2078]
[1736514453776,0.4638,3317.8,3317.2,0.30146]
[1736514453777,0.30147,3317.3,3317.2,0.30146]
[1736514454270,3.2078,3317.6,3317.0,40.8]
[1736514454465,0.30148,3317.2,3317.1,0.30148]
[1736514455174,0.30148,3317.1,3317.0,40.8]
[1736514455874,0.30149,3317.0,3316.9,0.30149]
[1736514456074,0.76169,3317.0,3316.9,0.30149]
[1736514456374,0.76169,3317.0,3316.9,41.10149]
[1736514456571,0.76169,3317.0,3316.1,5.19110689]
[1736514456572,0.30152,3316.7,3316.6,0.30151]
[1736514456770,0.4651,3316.9,3316.1,2.31258767]
[1736514456971,0.4651,3316.9,3316.4,0.30153]
[1736514456972,0.30154,3316.5,3316.4,0.30153]
[1736514457469,0.444,3316.6,3316.5,0.30153]
[1736514457670,0.4602,3317.0,3316.4,2.31258767]
[1736514457869,0.30153,3316.7,3316.6,0.30152]
[1736514458075,0.30153,3316.7,3316.2,41.55389]
[1736514458076,0.30153,3316.6,3316.5,0.30153]
[1736514459069,3.2078,3316.6,3316.2,40.8]
[1736514459272,3.2078,3316.6,3315.9,0.30158]
[1736514459273,3.96163,3316.6,3315.9,0.30158]
[1736514459473,0.30156,3316.3,3316.2,0.30155]
[1736514460070,0.30157,3316.2,3316.1,0.30156]
[1736514460373,1.20977,3316.2,3316.1,0.30156]
[1736514461679,0.9082,3316.2,3316.1,0.30156]
[1736514461978,1.20976,3316.2,3316.1,0.30156]
[1736514463171,0.9082,3316.2,3316.1,0.30156]
[1736514463782,0.9082,3316.2,3316.1,41.10156]
[1736514464872,0.30155,3316.5,3316.4,0.30153]
[1736514465079,1.18885,3316.5,3316.4,0.30153]
[1736514465382,1.18885,3316.5,3316.1,40.8]
[1736514465383,0.8873,3316.5,3316.1,40.8]
[1736514465680,0.8873,3316.5,3316.4,0.30154]
[1736514465877,3.2078,3316.6,3316.5,0.30153]
[1736514467375,3.50934,3316.6,3316.5,0.30153]
[1736514467585,3.2078,3316.6,3316.5,0.30153]
[1736514467883,3.50932,3316.6,3316.5,0.30153]
[1736514468273,3.2078,3316.6,3316.5,0.30153]
[1736514469181,3.50932,3316.6,3316.5,0.30153]
[1736514472487,3.2078,3316.6,3316.5,0.30153]
[1736514474388,3.2078,3317.0,3316.5,2.31258767]
[1736514474583,3.2078,3317.0,3316.9,0.3015]
[1736514475090,2.7078,3317.0,3316.9,0.3015]
[1736514475284,3.2078,3317.5,3317.4,0.30145]
[1736514475486,0.4492,3317.8,3317.7,0.30142]
[1736514478095,3.2078,3317.9,3317.4,1.21124]
[1736514478295,3.2078,3317.9,3317.8,0.30141]
[1736514478789,3.2078,3317.9,3317.8,41.10141]
[1736514479095,3.2078,3317.9,3317.8,0.30141]
[1736514480594,0.9059,3318.2,3317.6,40.8]
[1736514480796,0.9059,3318.2,3318.1,0.30139]
[1736514481900,1.20728,3318.2,3318.1,0.30139]
[1736514482208,0.9059,3318.2,3317.1,2.31258767]
[1736514482398,0.30141,3318.0,3317.9,0.3014]
[1736514482806,0.30142,3317.9,3317.8,0.30141]
[1736514483401,0.9059,3318.2,3317.4,0.75364]
[1736514483696,0.30142,3317.9,3317.8,0.30141]
[1736514483901,0.9059,3318.2,3317.4,0.75364]
[1736514484103,0.9059,3318.2,3317.2,0.9281]
[1736514484104,3.2078,3318.7,3318.0,2.31258767]
[1736514484304,0.30131,3319.0,3318.9,0.30131]
[1736514484506,0.30132,3318.9,3318.8,0.30132]
[1736514484902,3.2078,3319.1,3318.3,3.06599767]
[1736514485209,0.30132,3318.9,3318.8,0.30132]
[1736514485508,3.2078,3319.1,3318.3,3.06599767]
[1736514485509,3.5091,3319.1,3319.0,0.30131]
[1736514485805,3.2078,3319.1,3319.0,0.30131]
[1736514486500,0.30132,3318.9,3318.8,0.30132]
[1736514486700,0.30131,3319.0,3318.6,2.31258767]
[1736514486897,0.30131,3319.0,3318.5,0.30135]
[1736514486898,0.30135,3318.6,3318.5,0.30135]
[1736514487104,2.31258767,3319.0,3318.1,3.2078]
[1736514487301,0.30137,3318.4,3318.2,0.30138]
[1736514487502,0.30137,3318.3,3318.2,0.30137]
[1736514487804,0.3014,3318.1,3318.0,0.30139]
[1736514488004,0.30141,3318.0,3317.9,0.3014]
[1736514488308,3.2078,3318.2,3317.6,3.2078]
[1736514488809,3.2078,3318.2,3317.4,0.4485]
[1736514488810,3.96126,3318.2,3317.4,0.30144]
[1736514489001,0.30144,3317.5,3317.4,0.30144]
[1736514489406,0.7535,3318.0,3317.2,5.52038767]
[1736514489607,0.30144,3317.6,3317.5,0.30144]
[1736514490104,0.7535,3318.0,3317.5,0.30144]
[1736514490313,0.30144,3317.6,3317.5,0.30144]
[1736514490505,0.30146,3317.4,3317.3,0.30145]
[1736514490803,0.30145,3317.5,3317.4,0.30144]
[1736514491408,0.8955,3317.8,3317.4,0.30144]
[1736514491604,0.4766,3317.7,3317.4,0.30144]
[1736514491909,0.30145,3317.5,3317.4,0.30144]
[1736514492606,0.4766,3317.7,3317.2,5.52038767]
[1736514492910,0.30145,3317.6,3317.5,0.30144]
[1736514493099,5.99698767,3317.7,3317.0,40.8]
[1736514493299,0.30148,3317.1,3317.0,40.8]
[1736514493808,0.30148,3317.1,3317.0,41.10149]
[1736514494004,0.30148,3317.1,3317.0,40.8]
[1736514494209,0.4316,3317.2,3316.6,2.31258767]
[1736514494608,0.30148,3317.1,3317.0,0.30148]
[1736514497505,0.30149,3317.0,3316.9,2.61407767]
[1736514497910,0.30148,3317.1,3317.0,0.30148]
[1736514499009,0.3015,3317.0,3316.9,0.30149]
[1736514499212,0.741,3317.0,3316.9,0.30149]
[1736514500009,0.4395,3317.0,3316.7,40.8]
[1736514500213,0.30151,3316.8,3316.7,41.10151]
[1736514500520,0.71281,3316.9,3316.7,41.10151]
[1736514500820,0.30151,3316.8,3316.7,41.10151]
[1736514501116,0.30151,3316.8,3316.7,40.8]
[1736514501517,0.30151,3316.8,3316.7,0.30151]
[1736514502513,3.2078,3316.8,3316.3,40.8]
[1736514502709,0.30153,3316.6,3316.5,0.30153]
[1736514503026,3.2078,3316.8,3316.4,0.30154]
[1736514503027,0.30154,3316.5,3316.4,0.30154]
[1736514504118,3.2078,3316.8,3316.2,40.8]
[1736514504722,0.30155,3316.5,3316.4,0.30154]
[1736514506322,0.30153,3316.7,3316.6,0.30152]
[1736514508321,3.96159,3316.8,3316.2,40.8]
[1736514508625,0.30155,3316.4,3316.3,0.30153]
[1736514508824,0.30153,3316.6,3316.5,0.30152]
[1736514509020,0.30152,3316.7,3316.6,0.30151]
[1736514510621,3.2078,3316.8,3316.2,0.7539]
[1736514510821,3.2078,3316.8,3316.7,0.30151]
[1736514511025,0.30146,3317.3,3317.2,0.30147]
[1736514511218,0.73316,3317.3,3317.2,0.30147]
[1736514511419,1.20896,3317.3,3317.2,0.30147]
[1736514513628,0.30149,3317.1,3317.0,0.30148]
[1736514515230,0.75368,3317.2,3316.6,3.2078]
[1736514515417,0.30151,3316.7,3316.6,3.50931]
[1736514516625,2.31258767,3316.8,3316.2,3.6813]
[1736514516925,2.31258767,3316.8,3316.3,0.30154]
[1736514516926,0.30155,3316.4,3316.3,0.30154]
[1736514517328,0.69255,3316.6,3316.3,0.30154]
[1736514517519,0.30155,3316.4,3316.3,0.30154]
[1736514517716,3.2078,3316.5,3315.9,0.4605]
[1736514517921,0.18698,3316.1,3316.0,0.30156]
[1736514518425,0.3016,3315.9,3315.8,0.30158]
[1736514518828,0.75386,3316.4,3315.7,3.6813]
[1736514519128,0.30158,3316.0,3315.9,0.30157]
[1736514519820,0.30157,3316.2,3316.1,0.30155]
[1736514522927,3.2078,3316.5,3315.8,3.52167767]
[1736514523132,0.30154,3316.5,3316.4,0.30153]
[1736514523533,0.30154,3316.5,3316.4,41.10153]
[1736514523730,0.30154,3316.5,3316.4,0.30153]
[1736514524737,3.90035,3316.6,3316.2,40.8]
[1736514524932,0.30155,3316.3,3316.2,41.10156]
[1736514525435,0.30157,3316.2,3316.1,0.30156]
[1736514527431,3.90035,3316.6,3316.0,0.4633]
[1736514527631,0.30156,3316.3,3316.2,0.30155]
[1736514535441,0.30156,3316.3,3315.9,41.55396]
[1736514535442,2.31258767,3316.5,3315.9,40.8]
[1736514535639,0.30158,3316.1,3316.0,0.30156]
[1736514535836,0.30162,3315.7,3315.6,0.3016]
[1736514536143,0.30164,3315.5,3315.4,0.30162]
[1736514536539,0.30164,3315.5,3315.2,3.2078]
[1736514536540,0.30164,3315.4,3315.3,0.30164]
[1736514536840,0.77624,3315.4,3315.3,0.30164]
[1736514537140,0.4746,3315.4,3315.3,0.30164]
[1736514537735,0.77623,3315.4,3315.3,0.30164]
[1736514537934,0.77623,3315.4,3315.1,41.10166]
[1736514537935,0.4746,3315.4,3315.1,41.10166]
[1736514538134,0.30165,3315.2,3315.1,41.10166]
[1736514538538,0.4753,3315.3,3315.1,40.8]
[1736514538736,0.77694,3315.3,3315.2,0.30165]
[1736514540337,0.30167,3315.1,3315.0,0.30166]
[1736514540542,0.30166,3315.2,3315.1,0.30165]
[1736514541048,0.30168,3315.0,3314.9,0.30167]
[1736514541345,3.20779,3315.2,3314.8,0.30169]
[1736514541544,0.30168,3315.0,3314.9,0.30166]
[1736514542450,0.3017,3314.8,3314.7,0.30169]
[1736514542752,3.2078,3314.8,3314.3,4.1484]
[1736514543045,0.30172,3314.6,3314.5,0.30171]
[1736514543542,0.8833,3314.7,3314.3,4.1484]
[1736514543543,1.185,3314.7,3314.6,0.30171]
[1736514543942,0.8833,3314.7,3314.6,0.30171]
[1736514544142,3.50949,3314.8,3314.3,4.1484]
[1736514544348,3.50949,3314.8,3314.7,0.3017]
[1736514545646,3.2078,3314.8,3314.7,0.3017]
[1736514545945,4.0911,3315.2,3315.1,0.30166]
[1736514546144,3.2078,3315.2,3315.1,0.30166]
[1736514546442,3.50945,3315.2,3315.1,41.10166]
[1736514546936,3.50945,3315.2,3315.1,0.30166]
[1736514548041,3.2078,3315.2,3314.9,0.43]
[1736514548349,0.30169,3314.9,3314.8,0.30168]
[1736514548550,0.30169,3314.9,3314.8,41.10168]
[1736514549050,3.2078,3315.2,3315.1,0.30166]
[1736514549051,3.50946,3315.2,3315.1,0.30166]
[1736514550349,0.30166,3315.2,3315.1,0.30165]
[1736514557151,0.30166,3315.2,3314.6,0.75426]
[1736514557152,0.30171,3314.7,3314.6,0.3017]
[1736514557357,0.30173,3314.5,3314.4,0.30172]
[1736514557657,0.8967,3314.6,3314.2,44.35108741]
[1736514557854,1.19841,3314.6,3314.5,0.30171]
[1736514558960,1.19841,3314.6,3314.3,0.30173]
[1736514558961,0.30173,3314.4,3314.3,0.30173]
[1736514560151,0.4535,3314.5,3314.1,40.8]
[1736514560344,0.30174,3314.2,3314.1,40.8]
[1736514560549,0.30174,3314.2,3314.1,41.10175]
[1736514561250,0.30174,3314.2,3314.1,0.30175]
[1736514562256,0.30175,3314.1,3314.0,41.10176]
[1736514562657,3.06686767,3314.4,3314.0,41.10176]
[1736514562960,0.30175,3314.1,3314.0,41.10176]
[1736514563152,0.30175,3314.1,3314.0,40.8]
[1736514563353,0.30176,3314.0,3313.9,0.30177]
[1736514563552,1.19516,3314.0,3313.9,0.30177]
[1736514563757,1.19516,3314.0,3313.6,0.4306]
[1736514563758,0.8934,3314.0,3313.7,40.8]
[1736514563960,0.30179,3313.8,3313.7,41.10178]
[1736514564667,2.906,3314.2,3313.7,40.8]
[1736514564864,0.30172,3314.5,3313.8,0.75445]
[1736514565161,3.50951,3314.6,3314.5,0.30171]
[1736514565665,0.30172,3314.5,3314.4,0.30172]
[1736514571572,3.2078,3315.0,3314.9,0.30168]
[1736514571869,3.50947,3315.0,3314.9,0.30168]
[1736514572067,3.50947,3315.0,3314.9,41.10168]
[1736514572262,3.50947,3315.0,3314.9,0.30168]
[1736514573364,0.3017,3314.8,3314.7,0.30169]
[1736514575067,0.30172,3314.6,3314.5,0.3017]
[1736514575974,0.30171,3314.5,3314.4,89.63672]
[1736514577869,0.30171,3314.5,3314.4,89.335]
[1736514591081,3.50951,3314.5,3314.4,89.335]
[1736514596183,0.30171,3314.5,3314.4,89.335]
[1736514596487,3.50951,3314.5,3314.4,89.335]
[1736514597789,3.50951,3314.5,3314.4,88.1683]
[1736514599693,8.50951,3314.5,3314.4,86.46953657]
[1736514600089,8.50951,3314.5,3314.4,85.59089657]
[1736514600289,8.50951,3314.5,3314.4,83.32454564]
[1736514600490,8.50951,3314.5,3314.4,80.3437088]
[1736514600684,8.50951,3314.5,3314.4,66.60129938]
[1736514600883,8.50951,3314.5,3314.4,63.95885938]
[1736514601084,8.50951,3314.5,3314.4,63.11054938]
[1736514601592,8.50951,3314.5,3314.4,62.40694938]
[1736514602289,8.50951,3314.5,3314.4,61.72249938]
[1736514603284,8.50951,3314.5,3314.4,48.43803481]
[1736514603588,8.50951,3314.5,3314.4,45.43878481]
[1736514604890,8.50951,3314.5,3314.4,41.75638481]
[1736514605088,20.36510083,3314.5,3314.4,41.04599481]
[1736514605289,20.36510083,3314.5,3314.4,40.32499481]
[1736514605988,20.36510083,3314.5,3314.4,38.26131284]
[1736514606292,20.36510083,3314.5,3314.4,22.42198764]
[1736514606489,21.55210083,3314.5,3314.4,22.42198764]
[1736514606790,18.8646885,3314.5,3314.4,22.42198764]
[1736514606990,17.6776885,3314.5,3314.4,22.42198764]
[1736514607190,15.36510083,3314.5,3314.4,22.42198764]
[1736514607593,15.36510083,3314.5,3314.4,22.72370764]
[1736514607893,15.36510083,3314.5,3314.4,22.42198764]
[1736514608594,15.36510083,3314.5,3314.4,22.72370764]
[1736514608787,3.50951,3314.5,3314.4,22.42198764]
[1736514611395,6.27679767,3314.5,3314.4,22.42198764]
[1736514611695,6.27679767,3314.5,3314.4,17.42560152]
[1736514612698,6.52493975,3314.5,3314.4,17.42560152]
[1736514613693,3.96421,3314.5,3314.4,17.42560152]
[1736514613887,3.50951,3314.5,3314.4,17.42560152]
[1736514615195,5.82209767,3314.5,3314.4,17.42560152]
[1736514615700,5.82209767,3314.5,3314.4,15.72684702]
[1736514615891,10.82209767,3314.5,3314.4,15.72684702]
[1736514616092,10.82209767,3314.5,3314.4,15.07133702]
[1736514616493,10.82209767,3314.5,3314.4,14.36456702]
[1736514616694,10.82209767,3314.5,3314.4,13.35933702]
[1736514616896,10.82209767,3314.5,3314.4,11.34505702]
[1736514617094,10.82209767,3314.5,3314.4,10.31947702]
[1736514617400,10.82209767,3314.5,3314.4,9.51072702]
[1736514617601,0.3018,3313.6,3313.5,0.472]
[1736514617898,3.5096,3313.6,3313.5,0.472]
[1736514619293,3.5096,3313.6,3313.4,0.4623]
[1736514619294,3.2078,3313.6,3313.4,0.4623]
[1736514619499,0.30183,3313.2,3313.1,0.4586]
[1736514619695,5.82221767,3313.2,3313.1,0.4586]
[1736514619905,3.50963,3313.2,3313.1,0.4586]
[1736514623301,3.2078,3313.2,3313.1,3.07302767]
[1736514626011,3.50963,3313.2,3313.1,0.4586]
[1736514626202,3.2078,3313.2,3313.1,0.4586]
[1736514626402,3.2078,3313.2,3313.1,0.76044]
[1736514626703,3.50963,3313.2,3313.1,0.76044]
[1736514627701,3.2078,3313.2,3313.1,0.76044]
[1736514627906,3.2078,3313.2,3313.1,3.07302767]
[1736514628112,0.3018,3313.6,3313.5,0.30179]
[1736514628312,3.2078,3313.8,3313.7,0.30179]
[1736514628503,8.29321669,3314.0,3313.9,0.30177]
[1736514629100,8.29321669,3314.0,3313.9,1.17747]
[1736514629699,8.59497669,3314.0,3313.9,1.17747]
[1736514629909,0.30176,3314.0,3313.9,0.4369]
[1736514634813,0.30177,3313.9,3313.8,0.4595]
[1736514635109,3.50957,3313.9,3313.8,0.4595]
[1736514635310,0.75445,3313.8,3312.9,3.2078]
[1736514635512,0.75445,3313.8,3313.0,1.16915]
[1736514635513,0.30184,3313.1,3313.0,1.16915]
[1736514635711,3.2078,3313.1,3312.7,0.4562]
[1736514635911,0.30187,3312.8,3312.7,0.4562]
[1736514636209,0.30187,3312.8,3312.7,0.75807]
[1736514636410,0.30188,3312.7,3312.6,1.16918]
[1736514636617,0.30187,3312.8,3312.7,0.30187]
[1736514637510,0.30187,3312.8,3312.7,0.30188]
[1736514637716,0.4655,3313.0,3312.8,0.30187]
[1736514637717,0.30187,3312.9,3312.8,0.30187]
[1736514638016,0.4655,3313.0,3312.6,0.8673]
[1736514638213,0.30187,3312.8,3312.7,0.30188]
[1736514639906,0.30188,3312.7,3312.6,1.16919]
[1736514640106,0.30187,3312.8,3312.7,0.30188]
[1736514640311,0.4655,3313.0,3312.7,0.30188]
[1736514640509,0.4655,3313.0,3312.6,0.8673]
[1736514640710,0.30187,3312.8,3312.7,0.30187]
[1736514642409,0.4655,3313.0,3312.6,0.8673]
[1736514642715,0.30187,3312.8,3312.7,0.30188]
[1736514642916,0.30188,3312.7,3312.6,1.16918]
[1736514643119,3.50968,3312.7,3312.6,0.8673]
[1736514643610,3.50968,3312.7,3312.6,1.16919]
[1736514643809,3.2078,3312.7,3312.6,1.16919]
[1736514644812,3.50968,3312.7,3312.6,0.8673]
[1736514645113,3.50968,3312.7,3312.6,1.16919]
[1736514645620,3.2078,3312.7,3312.6,1.16919]
[1736514645816,3.50968,3312.7,3312.6,1.16919]
[1736514646120,3.2078,3312.7,3312.6,1.16919]
[1736514646416,3.50968,3312.7,3312.6,1.16919]
[1736514646824,0.30187,3312.8,3312.7,0.30187]
[1736514647314,3.2078,3312.9,3312.6,0.8673]
[1736514647521,0.30188,3312.8,3312.7,0.30188]
[1736514648714,3.2078,3312.9,3312.6,0.8673]
[1736514648924,3.2078,3312.9,3312.8,0.30187]
[1736514649319,3.2078,3312.9,3312.8,41.10187]
[1736514649620,0.30187,3312.8,3312.6,0.30188]
[1736514649920,0.30187,3312.8,3312.7,0.30188]
[1736514650328,3.2078,3312.9,3312.4,0.4562]
[1736514650628,0.30189,3312.6,3312.5,41.10189]
[1736514650926,0.30189,3312.6,3312.5,0.30189]
[1736514652428,0.3019,3312.5,3312.4,0.3019]
[1736514652631,0.3019,3312.6,3312.5,0.30189]
[1736514653330,0.4738,3312.7,3312.2,1.65951]
[1736514653532,0.77568,3312.7,3312.6,0.30189]
[1736514658637,0.3019,3312.6,3312.5,0.30189]
[1736514659129,0.3019,3312.5,3312.4,0.3019]
[1736514659634,0.74719,3312.6,3312.5,0.3019]
[1736514660331,0.30191,3312.4,3312.3,0.30191]
[1736514660531,0.30191,3312.4,3312.1,0.30193]
[1736514660532,0.30193,3312.2,3312.1,0.30193]
[1736514660833,0.30194,3312.1,3312.0,0.30194]
[1736514661037,0.76954,3312.1,3312.0,0.30194]
[1736514661238,0.4676,3312.1,3312.0,0.30194]
[1736514662431,0.4676,3312.1,3311.7,40.8]
[1736514662738,0.30195,3312.0,3311.9,0.30194]
[1736514663231,0.30195,3312.0,3311.7,41.7264]
[1736514663232,0.4676,3312.1,3311.6,3.2078]
[1736514663530,0.30198,3311.6,3311.5,0.30198]
[1736514663736,0.30198,3311.6,3311.5,41.10198]
[1736514663937,0.18858,3311.6,3311.5,41.10198]
[1736514664133,0.18858,3311.6,3311.5,40.8]
[1736514664328,0.34818,3311.8,3311.3,0.4701]
[1736514664532,0.302,3311.4,3311.3,0.302]
[1736514664734,0.77179,3311.5,3311.3,0.302]
[1736514664930,0.302,3311.4,3311.3,0.302]
[1736514665234,0.302,3311.4,3311.0,0.4431]
[1736514665235,0.302,3311.4,3311.0,0.30203]
[1736514665438,0.46838312,3311.5,3310.2,5.52038767]
[1736514665439,3.2078,3311.1,3310.2,5.52038767]
[1736514665731,3.2078,3311.1,3310.4,0.4431]
[1736514665936,0.30204,3311.0,3310.4,1.19831]
[1736514666234,0.30204,3311.0,3310.4,1.19832]
[1736514666438,0.30204,3311.0,3310.8,0.30204]
[1736514666843,3.2078,3311.1,3310.4,0.4431]
[1736514667039,2.31258767,3311.0,3310.4,0.4431]
[1736514667239,0.30206,3310.8,3310.4,0.4431]
[1736514667639,0.4313,3310.9,3310.7,0.30206]
[1736514667942,0.73335,3310.9,3310.7,0.30206]
[1736514668342,0.4313,3310.9,3310.4,0.4431]
[1736514668646,0.4313,3310.9,3310.8,0.30205]
[1736514669142,0.73334,3310.9,3310.8,0.30205]
[1736514670042,0.73334,3310.9,3310.4,0.4431]
[1736514670347,0.4313,3310.9,3310.4,0.4431]
[1736514670538,0.4313,3310.9,3310.8,0.30205]
[1736514670843,0.73334,3310.9,3310.4,0.4431]
[1736514671043,0.30206,3310.7,3310.4,0.4431]
[1736514671343,0.30206,3310.8,3310.6,0.30207]
[1736514671844,0.4428,3310.7,3310.6,0.30207]
[1736514672342,3.6506,3310.7,3310.3,41.2393]
[1736514672537,3.6506,3310.7,3310.4,0.30209]
[1736514672538,0.30207,3310.6,3310.4,0.30209]
[1736514672741,3.95267,3310.7,3310.5,0.30208]
[1736514672941,0.30207,3310.6,3310.5,0.30208]
[1736514673132,0.30207,3310.6,3310.4,0.30208]
[1736514673841,3.95267,3310.7,3310.5,0.30208]
[1736514674647,3.6506,3310.7,3310.6,0.30207]
[1736514676149,3.2078,3311.6,3310.6,8.2078]
[1736514676341,3.2078,3311.6,3311.5,0.30199]
[1736514676848,3.2078,3311.6,3311.5,41.10199]
[1736514677544,3.50978,3311.6,3311.5,0.30199]
[1736514678049,3.50978,3311.6,3311.3,0.9413]
[1736514678050,0.302,3311.4,3311.3,41.57029]
[1736514678340,0.4593,3311.5,3310.8,0.9268]
[1736514678547,3.24608767,3311.5,3310.9,0.4683]
[1736514679141,0.30201,3311.3,3311.2,0.30201]
[1736514679445,0.30201,3311.3,3311.2,0.30202]
[1736514679641,0.9335,3311.5,3310.9,0.4683]
[1736514679845,0.4593,3311.5,3311.4,0.302]
[1736514680040,3.2078,3311.6,3311.0,3.06767767]
[1736514680239,3.2078,3311.6,3311.5,0.30199]
[1736514680951,3.50978,3311.6,3311.5,0.30199]
[1736514681245,3.2078,3311.6,3311.2,0.30201]